{"text_format":"1","workbook":"xlsx","n_sheets":1,"sheets":["Sheet1"],"not_rendered":{"charts":0,"images":0,"macros":1,"external_links":0,"defined_names":144,"comments":1,"pivot_tables":0},"unopened":[],"bounds":{"document_bytes":16777216,"sheet_cells":100000,"rows_first":2000,"rows_last":500,"rows_between":2000,"halvings":0,"cell_chars":16384,"cell_head_chars":4096},"cells_cut":0,"cells_raw":0,"read":"whole","date_system":"1900"}

{"sheet":"Sheet1","index":0,"n_rows":592,"n_cols":38,"rows_kept":592,"cut":false,"hidden":false,"merged":[[10,3,10,14],[411,17,416,18],[410,17,410,18],[392,17,396,18],[391,17,391,18],[587,3,587,14],[588,3,588,14],[589,3,589,14],[578,3,578,14],[579,3,579,14],[580,3,580,14],[581,3,581,14],[582,3,582,14],[583,3,583,14],[584,3,584,14],[585,3,585,14],[586,3,586,14],[527,10,527,12],[510,3,510,6],[510,7,510,8],[510,9,510,11],[510,12,510,14],[510,15,510,16],[512,15,512,16],[63,9,63,21],[591,3,591,28],[558,3,558,28],[536,3,536,28],[550,13,550,15],[549,13,549,15],[550,16,550,18],[549,16,549,18],[549,3,549,12],[550,3,550,12],[528,10,528,12],[529,10,529,12],[530,10,530,12],[522,5,522,10],[522,15,522,20],[522,25,522,27],[525,3,525,9],[526,3,526,9],[527,3,527,9],[528,3,528,9],[529,3,529,9],[530,3,530,9],[525,10,525,12],[526,10,526,12],[509,15,509,16],[508,3,508,6],[508,7,508,8],[508,9,508,11],[508,12,508,14],[508,15,508,16],[509,3,509,6],[509,7,509,8],[509,9,509,11],[509,12,509,14],[515,13,515,14],[507,3,507,6],[507,7,507,8],[505,3,506,6],[505,7,506,8],[505,9,506,11],[505,12,506,14],[507,9,507,11],[507,12,507,14],[505,15,506,16],[507,15,507,16],[495,3,495,28],[36,3,36,28],[485,17,485,19],[486,17,486,19],[488,17,488,19],[485,3,485,16],[486,3,486,16],[488,3,488,16],[464,3,464,13],[464,14,464,16],[475,3,475,10],[475,11,475,13],[477,3,477,10],[477,11,477,13],[475,14,475,18],[477,14,477,18],[475,19,475,21],[477,19,477,21],[452,3,452,13],[452,14,452,16],[453,3,453,13],[453,14,453,16],[454,3,454,13],[454,14,454,16],[446,3,446,13],[445,14,445,16],[446,14,446,16],[447,3,447,13],[447,14,447,16],[448,3,448,13],[448,14,448,16],[451,3,451,13],[451,14,451,16],[276,3,276,28],[267,3,267,13],[267,14,267,16],[267,17,267,19],[268,3,268,13],[268,14,268,16],[268,17,268,19],[270,3,270,13],[270,14,270,16],[270,17,270,19],[259,3,259,10],[259,11,259,15],[260,3,260,10],[260,11,260,15],[256,16,256,20],[256,21,256,25],[257,16,257,20],[258,16,258,20],[259,16,259,20],[260,16,260,20],[257,21,257,25],[258,21,258,25],[259,21,259,25],[260,21,260,25],[255,11,255,15],[255,16,255,20],[255,21,255,25],[256,3,256,10],[256,11,256,15],[257,3,257,10],[258,3,258,10],[258,11,258,15],[257,11,257,15],[245,23,245,25],[246,23,246,25],[237,3,237,10],[238,3,238,10],[239,3,239,10],[240,3,240,10],[241,3,241,10],[242,3,242,10],[243,3,243,10],[244,3,244,10],[245,3,245,10],[240,23,240,25],[241,23,241,25],[242,23,242,25],[243,23,243,25],[240,18,240,20],[241,18,241,20],[242,18,242,20],[243,18,243,20],[244,18,244,20],[245,18,245,20],[246,18,246,20],[240,21,240,22],[241,21,241,22],[244,23,244,25],[232,23,232,25],[233,23,233,25],[234,23,234,25],[235,23,235,25],[236,23,236,25],[237,23,237,25],[238,23,238,25],[239,23,239,25],[220,23,220,25],[215,23,215,25],[216,23,216,25],[217,23,217,25],[218,23,218,25],[220,18,220,20],[221,18,221,20],[238,21,238,22],[239,21,239,22],[221,21,221,22],[222,21,222,22],[223,21,223,22],[224,21,224,22],[227,23,227,25],[228,23,228,25],[229,23,229,25],[230,23,230,25],[231,23,231,25],[226,23,226,25],[239,18,239,20],[232,18,232,20],[233,18,233,20],[234,18,234,20],[235,18,235,20],[218,18,218,20],[219,18,219,20],[205,23,205,25],[206,23,206,25],[207,23,207,25],[208,23,208,25],[209,23,209,25],[210,23,210,25],[211,23,211,25],[219,23,219,25],[221,23,221,25],[222,23,222,25],[223,23,223,25],[224,23,224,25],[225,23,225,25],[207,18,207,20],[208,18,208,20],[209,18,209,20],[210,18,210,20],[211,18,211,20],[212,18,212,20],[212,23,212,25],[213,23,213,25],[214,23,214,25],[213,18,213,20],[214,18,214,20],[225,21,225,22],[222,18,222,20],[223,18,223,20],[224,18,224,20],[225,18,225,20],[215,18,215,20],[216,18,216,20],[217,18,217,20],[246,21,246,22],[229,21,229,22],[230,21,230,22],[231,21,231,22],[232,21,232,22],[233,21,233,22],[234,21,234,22],[235,21,235,22],[236,21,236,22],[237,21,237,22],[244,16,244,17],[245,16,245,17],[237,16,237,17],[238,16,238,17],[239,16,239,17],[240,16,240,17],[242,21,242,22],[243,21,243,22],[244,21,244,22],[245,21,245,22],[237,18,237,20],[238,18,238,20],[235,16,235,17],[236,16,236,17],[226,21,226,22],[227,21,227,22],[228,21,228,22],[241,16,241,17],[242,16,242,17],[243,16,243,17],[226,18,226,20],[227,18,227,20],[228,18,228,20],[229,18,229,20],[236,18,236,20],[230,18,230,20],[231,18,231,20],[222,16,222,17],[223,16,223,17],[246,16,246,17],[203,21,203,22],[204,21,204,22],[205,21,205,22],[206,21,206,22],[207,21,207,22],[208,21,208,22],[209,21,209,22],[210,21,210,22],[211,21,211,22],[212,21,212,22],[213,21,213,22],[214,21,214,22],[215,21,215,22],[216,21,216,22],[217,21,217,22],[218,21,218,22],[219,21,219,22],[220,21,220,22],[232,16,232,17],[233,16,233,17],[234,16,234,17],[246,11,246,12],[207,16,207,17],[208,16,208,17],[209,16,209,17],[210,16,210,17],[211,16,211,17],[212,16,212,17],[213,16,213,17],[214,16,214,17],[224,16,224,17],[225,16,225,17],[226,16,226,17],[227,16,227,17],[228,16,228,17],[229,16,229,17],[230,16,230,17],[231,16,231,17],[215,16,215,17],[216,16,216,17],[217,16,217,17],[218,16,218,17],[219,16,219,17],[220,16,220,17],[221,16,221,17],[237,11,237,12],[238,11,238,12],[239,11,239,12],[240,11,240,12],[241,11,241,12],[242,11,242,12],[243,11,243,12],[244,11,244,12],[245,11,245,12],[246,13,246,15],[237,13,237,15],[238,13,238,15],[239,13,239,15],[240,13,240,15],[241,13,241,15],[242,13,242,15],[243,13,243,15],[244,13,244,15],[245,13,245,15],[232,11,232,12],[232,13,232,15],[233,11,233,12],[233,13,233,15],[234,11,234,12],[234,13,234,15],[235,13,235,15],[235,11,235,12],[236,11,236,12],[236,13,236,15],[227,11,227,12],[227,13,227,15],[228,11,228,12],[228,13,228,15],[229,11,229,12],[229,13,229,15],[230,11,230,12],[230,13,230,15],[231,11,231,12],[231,13,231,15],[210,11,210,12],[222,11,222,12],[222,13,222,15],[220,11,220,12],[220,13,220,15],[221,11,221,12],[221,13,221,15],[226,11,226,12],[226,13,226,15],[200,21,200,25],[200,11,200,15],[196,3,196,10],[203,23,203,25],[204,23,204,25],[236,3,236,10],[202,13,202,15],[202,11,202,12],[202,16,202,17],[202,18,202,20],[203,11,203,12],[203,13,203,15],[204,11,204,12],[204,13,204,15],[205,11,205,12],[205,13,205,15],[206,11,206,12],[206,13,206,15],[207,11,207,12],[207,13,207,15],[208,11,208,12],[208,13,208,15],[209,11,209,12],[209,13,209,15],[228,3,228,10],[229,3,229,10],[230,3,230,10],[231,3,231,10],[232,3,232,10],[225,3,225,10],[233,3,234,10],[206,3,206,10],[196,16,196,20],[206,16,206,17],[204,18,204,20],[205,18,205,20],[206,18,206,20],[223,11,223,12],[223,13,223,15],[224,11,224,12],[224,13,224,15],[225,11,225,12],[225,13,225,15],[210,13,210,15],[218,11,218,12],[218,13,218,15],[219,11,219,12],[219,13,219,15],[163,17,163,19],[202,21,202,22],[202,23,202,25],[203,16,203,17],[204,16,204,17],[205,16,205,17],[203,18,203,20],[246,3,246,10],[211,11,211,12],[211,13,211,15],[212,11,212,12],[212,13,212,15],[213,11,213,12],[213,13,213,15],[214,11,214,12],[214,13,214,15],[215,11,215,12],[215,13,215,15],[216,11,216,12],[216,13,216,15],[217,11,217,12],[217,13,217,15],[226,3,226,10],[227,3,227,10],[163,3,163,10],[164,3,164,10],[163,11,163,13],[164,11,164,13],[163,14,163,16],[164,14,164,16],[192,11,192,15],[193,11,195,15],[193,3,195,10],[192,21,192,25],[193,21,195,25],[192,16,192,20],[193,16,195,20],[176,19,176,21],[177,19,177,21],[166,3,166,10],[166,11,166,13],[166,14,166,16],[166,17,166,19],[166,20,166,22],[137,24,137,25],[137,3,137,10],[137,11,137,12],[137,13,137,15],[137,16,137,18],[137,19,137,21],[137,22,137,23],[160,20,161,22],[162,20,162,22],[160,23,161,24],[162,23,162,24],[162,11,162,13],[160,11,161,13],[160,14,161,16],[162,14,162,16],[160,17,161,19],[162,17,162,19],[160,3,161,10],[162,3,162,10],[136,16,136,18],[136,19,136,21],[136,22,136,23],[136,24,136,25],[135,3,135,10],[135,11,135,12],[135,13,135,15],[135,16,135,18],[135,19,135,21],[135,22,135,23],[118,17,118,19],[119,3,119,13],[119,14,119,16],[119,17,119,19],[130,16,130,21],[130,22,130,23],[131,22,131,23],[132,22,132,23],[130,24,130,25],[131,24,131,25],[132,24,132,25],[131,16,131,18],[132,16,132,18],[131,19,131,21],[132,19,132,21],[114,3,114,13],[114,14,114,16],[114,17,114,19],[115,3,115,13],[115,14,115,16],[115,17,115,19],[99,3,99,13],[99,14,99,16],[99,17,99,19],[113,3,113,13],[113,14,113,16],[113,17,113,19],[97,14,97,16],[97,17,97,19],[98,14,98,16],[98,17,98,19],[97,3,97,13],[98,3,98,13],[84,21,84,23],[85,21,85,23],[84,17,84,20],[85,17,85,20],[86,3,86,10],[86,11,86,13],[86,14,86,16],[86,17,86,20],[86,21,86,23],[84,3,84,10],[84,11,84,13],[85,3,85,10],[85,11,85,13],[85,14,85,16],[84,14,84,16],[73,24,73,25],[73,26,73,27],[74,3,74,10],[74,11,74,13],[74,14,74,16],[74,17,74,19],[74,20,74,21],[74,22,74,23],[74,24,74,25],[74,26,74,27],[73,3,73,10],[73,11,73,13],[73,14,73,16],[73,17,73,19],[73,20,73,21],[73,22,73,23],[71,24,71,25],[71,26,71,27],[72,3,72,10],[72,11,72,13],[72,14,72,16],[72,17,72,19],[72,20,72,21],[72,22,72,23],[72,24,72,25],[72,26,72,27],[71,3,71,10],[71,11,71,13],[71,14,71,16],[71,17,71,19],[71,20,71,21],[71,22,71,23],[69,26,69,27],[70,26,70,27],[70,11,70,13],[69,3,69,10],[69,11,69,13],[70,3,70,10],[69,14,69,16],[69,17,69,19],[69,20,69,21],[69,22,69,23],[69,24,69,25],[70,24,70,25],[70,14,70,16],[70,17,70,19],[70,20,70,21],[70,22,70,23],[53,8,53,11],[59,3,59,28],[39,8,39,14],[38,15,38,20],[39,21,39,27],[49,5,49,27],[51,11,51,13],[39,15,39,20],[51,5,51,7],[51,17,51,27],[53,17,53,19],[201,11,201,15],[196,11,196,15],[203,3,203,10],[204,3,204,10],[205,3,205,10],[201,3,201,10],[202,3,202,10],[201,16,201,20],[201,21,201,25],[196,21,196,25],[197,3,197,10],[198,3,198,10],[199,3,199,10],[198,11,198,15],[199,11,199,15],[197,11,197,15],[200,3,200,10],[197,16,197,20],[198,16,198,20],[199,16,199,20],[200,16,200,20],[197,21,197,25],[198,21,198,25],[199,21,199,25],[304,3,304,13],[304,14,304,15],[304,16,304,17],[304,18,304,19],[298,3,298,13],[298,14,298,15],[298,16,298,17],[296,3,297,13],[296,14,297,15],[296,16,297,17],[300,3,300,13],[301,3,301,13],[300,14,300,15],[301,14,301,15],[300,16,300,17],[301,16,301,17],[300,18,300,19],[301,18,301,19],[296,18,297,19],[298,18,298,19],[299,3,299,13],[299,14,299,15],[299,16,299,17],[299,18,299,19],[305,3,305,13],[305,14,305,15],[305,16,305,17],[305,18,305,19],[306,3,306,13],[306,14,306,15],[306,16,306,17],[306,18,306,19],[307,3,307,13],[307,14,307,15],[307,16,307,17],[307,18,307,19],[308,3,308,13],[308,14,308,15],[308,16,308,17],[308,18,308,19],[309,18,309,19],[324,8,324,14],[324,19,324,20],[324,25,324,26],[326,13,326,14],[321,11,321,26],[316,11,316,26],[336,11,336,13],[337,11,337,13],[338,11,338,13],[339,11,339,13],[328,11,328,13],[328,3,328,10],[330,3,330,10],[331,3,331,10],[332,3,332,10],[333,3,333,10],[334,3,334,10],[335,3,335,10],[336,3,336,10],[358,3,358,13],[329,11,329,13],[329,3,329,10],[357,3,357,13],[358,14,358,16],[357,14,357,16],[359,3,359,13],[359,14,359,16],[340,11,340,13],[340,3,340,10],[344,11,344,13],[345,11,345,13],[346,11,346,13],[347,11,347,13],[348,11,348,13],[337,3,337,10],[338,3,338,10],[339,3,339,10],[330,11,330,13],[331,11,331,13],[332,11,332,13],[333,11,333,13],[334,11,334,13],[335,11,335,13],[362,3,362,13],[362,14,362,16],[363,3,363,13],[363,14,363,16],[364,3,364,13],[364,14,364,16],[365,3,365,13],[365,14,365,16],[374,3,374,13],[374,14,374,16],[380,3,380,13],[380,14,380,16],[381,3,381,13],[381,14,381,16],[391,3,391,13],[391,14,391,16],[375,3,375,13],[375,14,375,16],[376,3,376,13],[376,14,376,16],[377,3,377,13],[377,14,377,16],[378,3,378,13],[378,14,378,16],[379,3,379,13],[379,14,379,16],[389,7,389,18],[401,3,401,13],[401,14,401,16],[397,17,397,18],[398,17,398,18],[399,17,399,18],[401,17,401,18],[400,3,400,13],[400,14,400,16],[400,17,400,18],[413,3,413,13],[413,14,413,16],[416,3,416,13],[416,14,416,16],[415,3,415,13],[414,3,414,13],[414,14,414,16],[415,14,415,16],[392,3,392,13],[392,14,392,16],[393,3,393,13],[393,14,393,16],[395,3,395,13],[395,14,395,16],[396,3,396,13],[396,14,396,16],[397,3,397,13],[397,14,397,16],[394,3,394,13],[394,14,394,16],[398,3,398,13],[398,14,398,16],[399,3,399,13],[399,14,399,16],[589,15,589,16],[578,15,578,16],[579,15,579,16],[580,15,580,16],[581,15,581,16],[582,15,582,16],[583,15,583,16],[584,15,584,16],[585,15,585,16],[586,15,586,16],[587,15,587,16],[588,15,588,16],[551,13,551,15],[551,16,551,18],[421,14,421,16],[424,3,424,13],[424,14,424,16],[424,17,424,18],[422,3,422,13],[422,14,422,16],[422,17,422,18],[421,3,421,13],[423,3,423,13],[423,14,423,16],[423,17,423,18],[433,3,433,13],[434,3,434,13],[435,3,435,13],[437,3,437,13],[438,3,438,13],[438,14,438,16],[455,3,455,13],[455,14,455,16],[463,3,463,13],[463,14,463,16],[445,3,445,13],[20,11,21,19],[419,17,419,18],[420,17,420,18],[421,17,421,18],[449,3,449,13],[450,3,450,13],[449,14,449,16],[450,14,450,16],[419,3,419,13],[420,3,420,13],[434,14,434,16],[433,14,433,16],[435,14,435,16],[437,14,437,16],[425,3,425,13],[425,14,425,16],[425,17,425,18],[426,3,426,13],[426,14,426,16],[426,17,426,18],[419,14,419,16],[360,3,360,13],[412,3,412,13],[412,14,412,16],[116,3,116,13],[117,3,117,13],[116,14,116,16],[117,14,117,16],[116,17,116,19],[117,17,117,19],[133,3,133,10],[134,3,134,10],[133,11,133,12],[134,11,134,12],[133,13,133,15],[134,13,134,15],[133,16,133,18],[134,16,134,18],[133,19,133,21],[134,19,134,21],[132,3,132,10],[132,11,132,12],[132,13,132,15],[130,3,131,10],[130,11,131,12],[130,13,131,15],[118,3,118,13],[118,14,118,16],[177,22,177,25],[179,3,179,10],[179,11,179,15],[179,16,179,18],[179,19,179,21],[179,22,179,25],[164,17,164,19],[133,22,133,23],[134,22,134,23],[133,24,133,25],[134,24,134,25],[163,20,163,22],[164,20,164,22],[165,3,165,10],[165,11,165,13],[165,14,165,16],[165,17,165,19],[165,20,165,22],[163,23,163,24],[165,23,165,24],[135,24,135,25],[136,3,136,10],[136,11,136,12],[136,13,136,15],[418,14,418,16],[418,17,418,18],[410,3,410,13],[410,14,410,16],[411,3,411,13],[411,14,411,16],[436,3,436,13],[164,23,164,24],[178,3,178,10],[178,11,178,15],[178,16,178,18],[178,19,178,21],[178,22,178,25],[269,3,269,13],[269,14,269,16],[269,17,269,19],[166,23,166,24],[176,3,176,10],[177,3,177,10],[176,11,176,15],[177,11,177,15],[176,16,176,18],[177,16,177,18],[176,22,176,25],[565,3,569,28],[436,14,436,16],[302,3,302,13],[303,3,303,13],[302,14,302,15],[303,14,303,15],[302,16,302,17],[303,16,303,17],[302,18,302,19],[303,18,303,19],[361,3,361,13],[360,14,360,16],[361,14,361,16],[476,3,476,10],[476,11,476,13],[476,14,476,18],[476,19,476,21],[487,3,487,16],[487,17,487,19],[420,14,420,16],[417,3,417,13],[417,14,417,16],[417,17,417,18],[418,3,418,13]]}
[null,null,null,null,null,null,null,null,null,null,null,null,null,null,null,null,null,null,null,null,null,null,null,null,null,null,null,null,null,null,null,null,null,null,null,null,null,"Error"]
[null,null,null,"       INDIVIDUAL TAX RETURN INFORMATION FOR THE YEAR ENDED 30 JUNE 2018",null,null,null,null,null,null,null,null,null,null,null,null,null,null,null,null,null,null,null,null,null,null,null,null,null,null,null,null,null,null,null,null,null,"Count"]
[]
[null,null,null,"This form is interactive. Depending on your responses to the \"Yes / No\" questions, you will be prompted for further information. When you"]
[null,null,null,"have completed the form, please save it to your device, then send it to us by email or by using the \"Online Submission\" page on our website."]
[null,null,null,"Depending on your circumstances, it may also be necessary to attach additional information or supporting documents. If this is the case,"]
[null,null,null,"these will be listed at the end of the form, after you have completed all questions. We will contact you if we need further details or"]
[null,null,null,"clarification of any matters."]
[]
[null,null,null,"Please answer ALL of the prompted questions. All monetary information should be rounded to the nearest whole dollar."]
[null,null,null,"All input is to boxes like this. Dates should be entered as dd/mm/yy",null,null,null,null,null,null,null,null,null,null,null," After each entry, press \"ENTER\" or select another input cell."]
[null,null,null,"It may occasionally be necessary to scroll down to see the next prompted question (use your mouse wheel, or the right-hand scroll bar)."]
[null,null,null,"If you select the wrong \"Yes / No\" answer to a question, you can correct this simply by selecting again."]
[null,null,null,"After you complete and verify the form, Red font will indicate any missing information."]
[]
[null,null,null,"To use this form, you MUST have \"Macros\" enabled in your version of Microsoft Excel."]
[null,null,null,"If you see a Security Warning that \"Macros have been disabled\", simply click on the \"Options\" button and select \"Enable this content\"."]
[null,null,null,"Otherwise, Select the \"File\" menu in the top left-hand corner (or, in older versions, the \"Office\" button), then:"]
[null,null,null," - Options / Trust Center / Trust Center Settings / Macro Settings, and choose \"Enable all macros . . . . \""]
[]
[null,null,null,null,null,null,null,null,null,null,null,"You can test your Macro settings HERE >>"]
[]
[]
[]
[]
[null,null,null,"Important Note:"]
[null,null,null,"This form is intended merely to help you provide the information we need to prepare your income tax return. It covers the key income and"]
[null,null,null,"expense items which are relevant for most people who are NOT engaged in any business activities. No warranty is made of completeness,"]
[null,null,null,"and you remain primarily responsible to provide us with complete and accurate information. If you have derived any taxable income which is"]
[null,null,null,"NOT included on this form, please ensure that this is separately disclosed."]
[]
[null,null,null,"By completing this form and submitting it to us, you are confirming that:"]
[null,null,null," - you have read, and agree with, the Terms of Engagement available on our website, and"]
[null,null,null," - you agree to appoint KMT Consulting as your Tax Agent (if you have not already done so)."]
[]
[]
[null,null,null,"YOUR NAME AND CONTACT INFORMATION"]
[]
[null,null,null,null,null,null,null,null,"First Name (full legal name)",null,null,null,null,null,null,"Middle Name (optional)",null,null,null,null,null,"Surname (Family name)"]
[null,null,null,"Please enter your name:"]
[null,null,null,{"$f":"IF(finalise=\"\",\"\",IF(OR(firstname=\"\",V40=\"\"),\"Input required\",\"\"))","v":""},null,null,null,null,null,null,null,null,null,null,null,null,null,null,null,null,null,null,null,null,null,null,null,null,null,null,null,null,null,null,null,null,null,{"$f":"IF(D41=\"\",0,1)","v":0}]
[null,null,null,"Are you an existing client of KMT Consulting?",null,null,null,null,null,null,null,null,null,null,null,null,null,null,null,null,null,{"$f":"IF(B42=\"\",\"\",B42)","v":""}]
[null,null,null,{"$f":"IF(existingyn=\"No\",\"Please provide proof of identity (eg: copy of birth certificate, driver's licence or passport)\",\"\")","v":""}]
[]
[null,null,null,"Have any of your contact details changed since your last tax lodgement? (address / phone / email)?",null,null,null,null,null,null,null,null,null,null,null,null,null,null,null,null,null,{"$f":"IF(B45=\"\",\"\",B45)","v":""}]
[]
[]
[null,null,null,"Please provide your current details:"]
[]
[null,null,null,"Address:"]
[]
[null,null,null,"Phone:",null,null,null,null,null,"Mobile:",null,null,null,null,null,"Email:"]
[null,null,null,{"$f":"IF(finalise=\"\",\"\",IF(AND(detailsyn=\"Yes\",clientaddress=\"\",F52=\"\",L52=\"\",R52=\"\"),\"Input required\",\"\"))","v":""},null,null,null,null,null,null,null,null,null,null,null,null,null,null,null,null,null,null,null,null,null,null,null,null,null,null,null,null,null,null,null,null,null,{"$f":"IF(D53=\"\",0,1)","v":0}]
[null,null,null,"Your Tax File Number:",null,null,null,null,null,null,null,null,null,"Your date of birth:",null,null,null,null,null,null,"  dd/mm/yy"]
[null,null,null,{"$f":"IF(finalise=\"\",\"\",IF(AND(existingyn=\"No\",OR(clientaddress=\"\",I54=\"\",R54=\"\")),\"Input Required\",\"\"))","v":""},null,null,null,null,null,null,null,null,null,null,null,null,null,null,null,null,null,null,null,null,null,null,null,null,null,null,null,null,null,null,null,null,null,{"$f":"IF(D55=\"\",0,1)","v":0}]
[]
[]
[]
[]
[null,null,null,"INCOME DETAILS"]
[]
[null,null,null,"Did you earn any income as an employee?",null,null,null,null,null,null,null,null,null,null,null,null,null,null,null,null,null,{"$f":"IF(B62=\"\",\"\",B62)","v":""}]
[]
[null,null,null,"What is your occupation?"]
[]
[null,null,null,"Are you able to attach ALL your employee payment summaries?",null,null,null,null,null,null,null,null,null,null,null,null,null,null,null,null,null,{"$f":"IF(B66=\"\",\"\",B66)","v":""}]
[]
[null,null,null,"Please supply the following information for any payment summaries you are NOT able to attach:"]
[]
[null,null,null,"Payer Name",null,null,null,null,null,null,null,"Payer ABN",null,null,"Gross",null,null,"Tax Withheld",null,null,"RFBA",null,"RESC",null,"Allow's",null,"Lump Sum",null,"Type"]
[]
[]
[]
[]
[]
[null,null,null,{"$f":"IF(finalise=\"\",\"\",IF(AND(pmtsumyn=\"No\",SUM(O71:AB75)=0),\"Input required\",\"\"))","v":""},null,null,null,null,null,null,null,null,null,null,null,null,null,null,null,null,null,null,null,null,null,null,null,null,null,null,null,null,null,null,null,null,null,{"$f":"IF(D76=\"\",0,1)","v":0}]
[]
[null,null,null,"Did you receive any Employment Termination Payments (ETP's)?",null,null,null,null,null,null,null,null,null,null,null,null,null,null,null,null,null,{"$f":"IF(B78=\"\",\"\",B78)","v":""}]
[]
[]
[null,null,null,"Are you able to attach a copy of all ETP statements?",null,null,null,null,null,null,null,null,null,null,null,null,null,null,null,null,null,{"$f":"IF(B81=\"\",\"\",B81)","v":""}]
[]
[null,null,null,"Please supply the following information for any ETP statements you are NOT able to attach:"]
[]
[null,null,null,"Payer Name",null,null,null,null,null,null,null,"Payer ABN",null,null,"Date Paid",null,null,"Taxable component",null,null,null,"Tax Withheld"]
[]
[]
[null,null,null,{"$f":"IF(finalise=\"\",\"\",IF(AND(etpattachyn=\"No\",SUM(R86:X87)=0),\"Input required\",\"\"))","v":""},null,null,null,null,null,null,null,null,null,null,null,null,null,null,null,null,null,null,null,null,null,null,null,null,null,null,null,null,null,null,null,null,null,{"$f":"IF(D88=\"\",0,1)","v":0}]
[]
[null,null,null,"Did you receive any Government pensions or allowances?",null,null,null,null,null,null,null,null,null,null,null,null,null,null,null,null,null,{"$f":"IF(B90=\"\",\"\",B90)","v":""}]
[null,null,null,"(Do NOT include Family Tax Benefit)"]
[]
[]
[null,null,null,"These details are usually available from the ATO. Do you want us to rely on the ATO information?",null,null,null,null,null,null,null,null,null,null,null,null,null,null,null,null,null,{"$f":"IF(B94=\"\",\"\",B94)","v":""}]
[]
[null,null,null,"Please provide the following information, or attach document copies:"]
[]
[null,null,null,"Type of payment",null,null,null,null,null,null,null,null,null,null,"Gross",null,null,"Tax Withheld"]
[]
[]
[null,null,null,{"$f":"IF(finalise=\"\",\"\",IF(AND(atopensyn=\"No\",SUM(O99:T100)=0),\"Input required\",\"\"))","v":""},null,null,null,null,null,null,null,null,null,null,null,null,null,null,null,null,null,null,null,null,null,null,null,null,null,null,null,null,null,null,null,null,null,{"$f":"IF(D101=\"\",0,1)","v":0}]
[]
[null,null,null,"Did you receive any assessable payments from Superannuation Funds?",null,null,null,null,null,null,null,null,null,null,null,null,null,null,null,null,null,{"$f":"IF(B103=\"\",\"\",B103)","v":""}]
[null,null,null,{"$f":"IF(supfundyn=\"Yes\",\"Please attach payment summaries.\",\"\")","v":""}]
[]
[]
[null,null,null,"Did you receive any INTEREST from financial institutions or other sources?",null,null,null,null,null,null,null,null,null,null,null,null,null,null,null,null,null,{"$f":"IF(B107=\"\",\"\",B107)","v":""}]
[]
[]
[null,null,null,"These details are usually available from the ATO. Do you want us to rely on the ATO information?",null,null,null,null,null,null,null,null,null,null,null,null,null,null,null,null,null,{"$f":"IF(B110=\"\",\"\",B110)","v":""}]
[]
[null,null,null,"Please provide the following information (for joint accounts, include your share only):"]
[]
[null,null,null,"Name of Financial Institution (or other source)",null,null,null,null,null,null,null,null,null,null,"Gross Interest",null,null,"Tax Withheld"]
[]
[]
[]
[]
[]
[]
[null,null,null,{"$f":"IF(finalise=\"\",\"\",IF(AND(atointyn=\"No\",SUM(O115:T120)=0),\"Input required\",\"\"))","v":""},null,null,null,null,null,null,null,null,null,null,null,null,null,null,null,null,null,null,null,null,null,null,null,null,null,null,null,null,null,null,null,null,null,{"$f":"IF(D121=\"\",0,1)","v":0}]
[]
[null,null,null,"Did you receive any DIVIDENDS from share investments?",null,null,null,null,null,null,null,null,null,null,null,null,null,null,null,null,null,{"$f":"IF(B123=\"\",\"\",B123)","v":""}]
[null,null,null,"You need to declare these even if they were automatically reinvested."]
[]
[null,null,null,"These details are usually available from the ATO. Do you want us to rely on the ATO information?",null,null,null,null,null,null,null,null,null,null,null,null,null,null,null,null,null,{"$f":"IF(B126=\"\",\"\",B126)","v":""}]
[]
[]
[null,null,null,"Please provide as much of the following information as you can, or attach document copies:"]
[]
[null,null,null,"Name of Company",null,null,null,null,null,null,null,"ASX\nCode",null,"Number of\nshares held",null,null,"Dividends Received",null,null,null,null,null,"Franking",null,"Tax"]
[null,null,null,null,null,null,null,null,null,null,null,null,null,null,null,null,"Unfranked",null,null,"Franked",null,null,"Credits",null,"Withheld"]
[]
[]
[]
[]
[]
[]
[null,null,null,{"$f":"IF(finalise=\"\",\"\",IF(AND(atodivsyn=\"No\",SUM(N133:Z138)=0),\"Input required\",\"\"))","v":""},null,null,null,null,null,null,null,null,null,null,null,null,null,null,null,null,null,null,null,null,null,null,null,null,null,null,null,null,null,null,null,null,null,{"$f":"IF(D139=\"\",0,1)","v":0}]
[]
[null,null,null,"Did you receive shares or options as part of an EMPLOYEE SHARE PLAN?",null,null,null,null,null,null,null,null,null,null,null,null,null,null,null,null,null,{"$f":"IF(B141=\"\",\"\",B141)","v":""}]
[]
[null,null,null,{"$f":"IF(esasyn=\"Yes\",\"Please attach the relevant documents from your employer.\",\"\")","v":""}]
[]
[null,null,null,"Did you receive any income from MANAGED INVESTMENTS?",null,null,null,null,null,null,null,null,null,null,null,null,null,null,null,null,null,{"$f":"IF(B145=\"\",\"\",B145)","v":""}]
[null,null,null,"(NOT including superannuation funds)"]
[null,null,null,{"$f":"IF(mgdinvyn=\"Yes\",\"Your fund manager should have provided you with a Tax Statement. Please attach a copy.\",\"\")","v":""}]
[]
[]
[null,null,null,"Do you run a BUSINESS of any kind?"]
[null,null,null,"(Whether as a Sole Trader or through another structure such as a Partnership, Trust or Company)?",null,null,null,null,null,null,null,null,null,null,null,null,null,null,null,null,null,{"$f":"IF(B150=\"\",\"\",B150)","v":""}]
[]
[null,null,null,{"$f":"IF(businessyn=\"Yes\",\"This type of income is outside the scope of this form. Please see the Business Checklist on our website\",\"\")","v":""}]
[null,null,null,{"$f":"IF(businessyn=\"Yes\",\"and supply all relevant information listed thereon.\",\"\")","v":""}]
[]
[]
[null,null,null,"Have you sold any shares or property which has resulted in a CAPITAL GAIN OR LOSS?",null,null,null,null,null,null,null,null,null,null,null,null,null,null,null,null,null,{"$f":"IF(B157=\"\",\"\",B157)","v":""}]
[]
[null,null,null,"Please provide the following details AND attach supporting documents:"]
[]
[null,null,null,"Asset Description\n(eg: Share Code or Property Address)",null,null,null,null,null,null,null,"Date of Purchase",null,null,"Purchase price\n(see Note 1)",null,null,"Date of\nSale",null,null,"Sale Proceeds\n(see Note 2)",null,null,"Share of\nownership"]
[]
[]
[]
[]
[]
[]
[null,null,null,{"$f":"IF(finalise=\"\",\"\",IF(AND(cgtyn=\"Yes\",SUM(O163:Q167)+SUM(U163:W167)=0),\"Input required\",\"\"))","v":""},null,null,null,null,null,null,null,null,null,null,null,null,null,null,null,null,null,null,null,null,null,null,null,null,null,null,null,null,null,null,null,null,null,{"$f":"IF(D168=\"\",0,1)","v":0}]
[null,null,null,"Note 1:  Purchase price should include all incidental costs (eg: legal fees, stamp duties, valuations, registrations)."]
[null,null,null,"Note 2:  Sale Proceeds should be the net amount remaining AFTER deducting any selling expenses (eg: commissions, legal fees)."]
[]
[]
[null,null,null,"Did you receive any FOREIGN INCOME? (eg: foreign pensions, or from working overseas)?",null,null,null,null,null,null,null,null,null,null,null,null,null,null,null,null,null,{"$f":"IF(B173=\"\",\"\",B173)","v":""}]
[]
[null,null,null,"Please describe the nature of the income and the amount received:"]
[]
[null,null,null,"Type of Income",null,null,null,null,null,null,null,"Country",null,null,null,null,"Gross Amount",null,null,"Tax Withheld",null,null,"Currency"]
[]
[]
[]
[null,null,null,{"$f":"IF(finalise=\"\",\"\",IF(AND(forincyn=\"Yes\",SUM(Q178:V180)=0),\"Input required\",\"\"))","v":""},null,null,null,null,null,null,null,null,null,null,null,null,null,null,null,null,null,null,null,null,null,null,null,null,null,null,null,null,null,null,null,null,null,{"$f":"IF(D181=\"\",0,1)","v":0}]
[]
[]
[null,null,null,"Did you receive any RENTAL PROPERTY INCOME?",null,null,null,null,null,null,null,null,null,null,null,null,null,null,null,null,null,{"$f":"IF(B184=\"\",\"\",B184)","v":""}]
[]
[]
[null,null,null,"Are you attaching any annual rental summaries from estate agents or property managers?",null,null,null,null,null,null,null,null,null,null,null,null,null,null,null,null,null,{"$f":"IF(B187=\"\",\"\",B187)","v":""}]
[]
[null,null,null,{"$f":"IF(attachrentyn=\"Yes\",\"Please list below ONLY those income and expense items which DO NOT appear on any attached summaries:\",\"Please list below ALL income and expenses for each property:\")","v":"Please list below ALL income and expenses for each property:"}]
[null,null,null,"Pre-filled item descriptions are for your guidance only. You can change these by typing over them if necessary."]
[null,null,null,"(Include 100% of income and expenses, even if you are not the sole owner of the property)"]
[null,null,null,{"$f":"IF(finalise=\"\",\"\",IF(AND(rentyn=\"Yes\",SUM(L201:Z247)=0),\"Input required\",\"\"))","v":""},null,null,null,null,null,null,null,null,null,null,null,null,null,null,null,null,null,null,null,null,null,null,null,null,null,null,null,null,null,null,null,null,null,{"$f":"IF(D192=\"\",0,1)","v":0}]
[null,null,null,null,null,null,null,null,null,null,null,"Property 1",null,null,null,null,"Property 2",null,null,null,null,"Property 3"]
[null,null,null,"Property Address >>"]
[]
[]
[null,null,null,"No. of weeks rented (if not full year) >"]
[null,null,null,"INCOME"]
[null,null,null,"Gross Rent received"]
[null,null,null,"Reimbursements for water, electricity, etc"]
[null,null,null,"Total Rent and other income",null,null,null,null,null,null,null,{"$f":"SUM(L199:P200)","v":0},null,null,null,null,{"$f":"SUM(Q199:U200)","v":0},null,null,null,null,{"$f":"SUM(V199:Z200)","v":0}]
[null,null,null,"COSTS & EXPENSES"]
[null,null,null,"Advertising"]
[null,null,null,"Agent / Management Fees"]
[null,null,null,"Borrowing or Refinancing Costs"]
[null,null,null,"Bank Charges"]
[null,null,null,"Body Corporate / Strata Levies"]
[null,null,null,"Cleaning"]
[null,null,null,"Electricity & Gas"]
[null,null,null,"Gardening / Lawnmowing"]
[null,null,null,"GST on Management Fees"]
[null,null,null,"Inspections, Reports, Valuations"]
[null,null,null,"Insurance - Building and/or Contents"]
[null,null,null,"Insurance - Landlord"]
[null,null,null,"Interest on Mortgage"]
[null,null,null,"Land Tax"]
[null,null,null,"Lease Preparation Fees"]
[null,null,null,"Legal Expenses"]
[null,null,null,"Pest Control"]
[null,null,null,"Rates - Council"]
[null,null,null,"Rates - Water"]
[null,null,null,"Repairs - Electrical"]
[null,null,null,"Repairs - Plumbing"]
[null,null,null,"Repairs - Other"]
[null,null,null,"Stationery, Postage, Telephone"]
[null,null,null,"Other Expenses"]
[]
[]
[]
[]
[]
[]
[null,null,null,"CAPITAL ITEMS"]
[null,null,null,"(eg: furniture, electrical equipment, carpets, hot water system, structural improvements)"]
[]
[null,null,null,"Please list separately, with purchase date",null,null,null,null,null,null,null,"Date",null,"$",null,null,"Date",null,"$",null,null,"Date",null,"$"]
[]
[]
[]
[]
[]
[]
[]
[]
[]
[]
[null,null,null,"Total Costs & Expenses",null,null,null,null,null,null,null,null,null,{"$f":"SUM(N203:P246)","v":0},null,null,null,null,{"$f":"SUM(S203:U246)","v":0},null,null,null,null,{"$f":"SUM(X203:Z246)","v":0}]
[]
[null,null,null,"In addition to the above information, please attach copies of any depreciation or capital allowance schedules"]
[null,null,null,"(unless you have already provided these)."]
[]
[null,null,null,"Has KMT Consulting previously accounted for ALL of these properties?",null,null,null,null,null,null,null,null,null,null,null,null,null,null,null,null,null,{"$f":"IF(B252=\"\",\"\",B252)","v":""}]
[]
[null,null,null,"Please provide the following information (unless you have already done so in a previous year):"]
[]
[null,null,null,null,null,null,null,null,null,null,null,"Property 1",null,null,null,null,"Property 2",null,null,null,null,"Property 3"]
[null,null,null,"Your ownership percentage"]
[null,null,null,"Date of purchase"]
[null,null,null,"Date you started collecting rent"]
[null,null,null,"Purchase price (incl. all incidentals)"]
[null,null,null,"Borrowing expenses"]
[]
[]
[null,null,null,"Have you received ANY OTHER INCOME which has not yet been included?",null,null,null,null,null,null,null,null,null,null,null,null,null,null,null,null,null,{"$f":"IF(B264=\"\",\"\",B264)","v":""}]
[]
[null,null,null,"Please provide details below:"]
[]
[null,null,null,"Type and source of income",null,null,null,null,null,null,null,null,null,null,"Gross",null,null,"Tax Withheld"]
[]
[]
[]
[null,null,null,{"$f":"IF(finalise=\"\",\"\",IF(AND(otherincyn=\"Yes\",SUM(O269:T271)=0),\"Input required\",\"\"))","v":""},null,null,null,null,null,null,null,null,null,null,null,null,null,null,null,null,null,null,null,null,null,null,null,null,null,null,null,null,null,null,null,null,null,{"$f":"IF(D272=\"\",0,1)","v":0}]
[]
[]
[]
[]
[null,null,null,"DEDUCTIBLE EXPENSES"]
[]
[null,null,null,"Please ensure that you list ONLY those expenses which you have incurred to earn your income. There must be a clear connection"]
[null,null,null,"between the nature of the expense and your occupation. Where expenses are partly for private purposes, these must be"]
[null,null,null,"apportioned on a reasonable basis. You are required to retain documentary evidence of all claims for at least 5 years."]
[null,null,null,"If requested by the ATO, you MUST be able to substantiate all claims listed here."]
[]
[null,null,null,"Did you incur any deductible expenses AS AN EMPLOYEE?",null,null,null,null,null,null,null,null,null,null,null,null,null,null,null,null,null,{"$f":"IF(B284=\"\",\"\",B284)","v":""}]
[]
[null,null,null,{"$f":"IF(AND(employeeyn=\"No\",wreyn=\"Yes\"),\"You have NOT indicated any employee income above. Please check before proceeding.\",IF(wreyn=\"No\",\"The Work-Related Expenses section of this form is not applicable.\",\"\"))","v":""}]
[]
[]
[null,null,null,"Did you have to use your personal CAR for work purposes (other than to or from work)?",null,null,null,null,null,null,null,null,null,null,null,null,null,null,null,null,null,{"$f":"IF(B289=\"\",\"\",B289)","v":""}]
[null,null,null,"(eg: for mail or banking, between jobs or offices, visiting customers or suppliers, attending training)?"]
[]
[]
[null,null,null,"Did you travel more than 5,000 kms for work purposes?",null,null,null,null,null,null,null,null,null,null,null,null,null,null,null,null,null,{"$f":"IF(B293=\"\",\"\",B293)","v":""}]
[]
[null,null,null,"Please complete the following information (reasonable estimates are acceptable):"]
[]
[null,null,null,"Destination and purpose of trip",null,null,null,null,null,null,null,null,null,null,"No of trips",null,"Kms per trip",null,"Total Kms"]
[]
[null,null,null,null,null,null,null,null,null,null,null,null,null,null,null,null,null,null,{"$f":"IF(O299=\"\",Q299,O299*Q299)","v":0}]
[null,null,null,null,null,null,null,null,null,null,null,null,null,null,null,null,null,null,{"$f":"IF(O300=\"\",Q300,O300*Q300)","v":0}]
[null,null,null,null,null,null,null,null,null,null,null,null,null,null,null,null,null,null,0]
[null,null,null,null,null,null,null,null,null,null,null,null,null,null,null,null,null,null,0]
[null,null,null,null,null,null,null,null,null,null,null,null,null,null,null,null,null,null,0]
[null,null,null,null,null,null,null,null,null,null,null,null,null,null,null,null,null,null,0]
[null,null,null,null,null,null,null,null,null,null,null,null,null,null,null,null,null,null,0]
[null,null,null,null,null,null,null,null,null,null,null,null,null,null,null,null,null,null,0]
[null,null,null,null,null,null,null,null,null,null,null,null,null,null,null,null,null,null,0]
[null,null,null,null,null,null,null,null,null,null,null,null,null,null,null,null,null,null,0]
[null,null,null,null,null,null,null,null,null,null,null,null,null,null,null,null,null,null,0]
[null,null,null,{"$f":"IF(finalise=\"\",\"\",IF(AND(fivekyn=\"No\",SUM(O299:R309)=0),\"Input required\",\"\"))","v":""},null,null,null,null,null,null,null,null,null,null,null,null,null,null,{"$f":"SUM(S299:T309)","v":0},null,null,null,null,null,null,null,null,null,null,null,null,null,null,null,null,null,null,{"$f":"IF(D310=\"\",0,1)","v":0}]
[]
[]
[null,null,null,"Do you want to base your claim on a valid LOG BOOK which is less than 5 years old?",null,null,null,null,null,null,null,null,null,null,null,null,null,null,null,null,null,{"$f":"IF(B313=\"\",\"\",B313)","v":""}]
[]
[null,null,null,{"$f":"IF(logbkyn=\"No\",\"The claim on your tax return will be limited to 5,000 kms.\",\"\")","v":""}]
[]
[null,null,null,"What was the main purpose of your travel?"]
[]
[]
[null,null,null,"Please provide the following information:"]
[]
[null,null,null,"What was the main purpose of your travel?"]
[]
[]
[null,null,null,"Make & model of vehicle >",null,null,null,null,null,null,null,null,null,null,null,null,null,null,"Purchase price > ",null,null,null,null,null,"Date purchased > "]
[]
[null,null,null,"Work-related use of vehicle as calculated in log book >"]
[]
[null,null,null,"Vehicle Expenses Incurred",null,null,null,null,null,null,null,"$"]
[null,null,null,"Fuel & Oil"]
[null,null,null,"Registration"]
[null,null,null,"CTP greenslip insurance"]
[null,null,null,"Other insurance"]
[null,null,null,"Service"]
[null,null,null,"Tyres"]
[null,null,null,"Other repairs"]
[null,null,null,"Lease payments"]
[null,null,null,"Loan Interest (see note below)"]
[]
[]
[null,null,null,"Total Vehicle Expenses",null,null,null,null,null,null,null,{"$f":"SUM(L329:N340)","v":0}]
[null,null,null,{"$f":"IF(finalise=\"\",\"\",IF(AND(logbkyn=\"Yes\",SUM(L330:N340)=0),\"Input required\",\"\"))","v":""},null,null,null,null,null,null,null,null,null,null,null,null,null,null,null,null,null,null,null,null,null,null,null,null,null,null,null,null,null,null,null,null,null,{"$f":"IF(D342=\"\",0,1)","v":0}]
[null,null,null,"Note:  If loan interest is not known, please provide the following:"]
[]
[null,null,null,"Amount borrowed"]
[null,null,null,"Amount of each repayment"]
[null,null,null,"Repayment frequency",null,null,null,null,null,null,null,null,null,null,"(ie: Weekly / Fortnightly / Monthly)"]
[null,null,null,"Term of the loan (number of years)"]
[null,null,null,"Final residual payment required (if any)?"]
[]
[]
[]
[null,null,null,"Did you incur any other TRAVEL EXPENSES (other than to-or-from work)?",null,null,null,null,null,null,null,null,null,null,null,null,null,null,null,null,null,{"$f":"IF(B353=\"\",\"\",B353)","v":""}]
[null,null,null,"(eg: Tolls, taxis, trains, parking, airfares, meals, accommodation)"]
[]
[null,null,null,"Please provide the following information:"]
[]
[null,null,null,"Type of travel expense and purpose of trip",null,null,null,null,null,null,null,null,null,null,"Cost $"]
[]
[]
[]
[]
[]
[]
[]
[]
[null,null,null,{"$f":"IF(finalise=\"\",\"\",IF(AND(travyn=\"Yes\",SUM(O359:Q366)=0),\"Input required\",\"\"))","v":""},null,null,null,null,null,null,null,null,null,null,null,null,null,null,null,null,null,null,null,null,null,null,null,null,null,null,null,null,null,null,null,null,null,{"$f":"IF(D367=\"\",0,1)","v":0}]
[]
[null,null,null,"DID you have to wear PROTECTIVE CLOTHING or a UNIFORM?",null,null,null,null,null,null,null,null,null,null,null,null,null,null,null,null,null,{"$f":"IF(B369=\"\",\"\",B369)","v":""}]
[null,null,null,"Note that conventional clothing - (eg: a business suit or general office attire) - is NOT deductible."]
[]
[null,null,null,"Please provide the following information:"]
[null,null,null,"For your convenience, the most common items have been pre-filled. You can delete or change them if necessary."]
[]
[null,null,null,"Clothing and Uniform expense details",null,null,null,null,null,null,null,null,null,null,"Cost $"]
[null,null,null,"Uniforms"]
[null,null,null,"Boots"]
[null,null,null,"Gloves, Safety wear"]
[null,null,null,"Hats, Sunscreen"]
[null,null,null,"Other protective clothing"]
[]
[]
[null,null,null,{"$f":"IF(finalise=\"\",\"\",IF(AND(clothyn=\"Yes\",SUM(O376:Q382)=0),\"Input required\",\"\"))","v":""},null,null,null,null,null,null,null,null,null,null,null,null,null,null,null,null,null,null,null,null,null,null,null,null,null,null,null,null,null,null,null,null,null,{"$f":"IF(D383=\"\",0,1)","v":0}]
[]
[null,null,null,"Did you undertake EDUCATION which directly relates to your employment?",null,null,null,null,null,null,null,null,null,null,null,null,null,null,null,null,null,{"$f":"IF(B385=\"\",\"\",B385)","v":""}]
[]
[null,null,null,"Please provide the following information:"]
[null,null,null,"For your convenience, the most common items have been pre-filled. You can delete or change them if necessary."]
[]
[null,null,null,"Name of course:"]
[]
[null,null,null,"Education expenses incurred",null,null,null,null,null,null,null,null,null,null,"Cost $",null,null,"%"]
[null,null,null,"Course fees",null,null,null,null,null,null,null,null,null,null,null,null,null,"Work-related use\nif NOT\n100%"]
[null,null,null,"Textbooks"]
[null,null,null,"Stationery"]
[null,null,null,"Travel to courses (trains, buses, taxis)"]
[null,null,null,"Travel to courses (by car) - Number of kilometers only",null,null,null,null,null,null,null,null,null,null,"kms"]
[null,null,null,"Internet use"]
[null,null,null,"Computers / Electronic tablets"]
[null,null,null,"Computer software & accessories"]
[]
[]
[null,null,null,{"$f":"IF(finalise=\"\",\"\",IF(AND(educyn=\"Yes\",SUM(O393:Q402)=0),\"Input required\",\"\"))","v":""},null,null,null,null,null,null,null,null,null,null,null,null,null,null,null,null,null,null,null,null,null,null,null,null,null,null,null,null,null,null,null,null,null,{"$f":"IF(D403=\"\",0,1)","v":0}]
[]
[null,null,null,"Did you incur any OTHER WORK-RELATED EXPENSES?",null,null,null,null,null,null,null,null,null,null,null,null,null,null,null,null,null,{"$f":"IF(B405=\"\",\"\",B405)","v":""}]
[null,null,null,"(EG: Union fees, tools, equipment, stationery, telephone, home office)?"]
[]
[null,null,null,"Please provide the following information:"]
[null,null,null,"For your convenience, the most common items have been pre-filled. You can delete or change them if necessary."]
[]
[null,null,null,"Other work-related expenses",null,null,null,null,null,null,null,null,null,null,"Cost $",null,null,"%"]
[null,null,null,"Union fees",null,null,null,null,null,null,null,null,null,null,null,null,null,"Work-related use\nif NOT\n100%"]
[null,null,null,"Other professional memberships"]
[null,null,null,"Licences, registrations"]
[null,null,null,"Training, Professional development"]
[null,null,null,"Stationery, Resources, Ink"]
[null,null,null,"Tools & equipment (see below if more than $300 per item)"]
[null,null,null,"Computer software & accessories"]
[null,null,null,"Internet use *"]
[null,null,null,"Mobile phone use *"]
[null,null,null,"Electricity for home office - Number of hours per week"]
[]
[]
[]
[]
[]
[]
[null,null,null,{"$f":"IF(finalise=\"\",\"\",IF(AND(otherwreyn=\"Yes\",SUM(O412:Q427)+SUM(O435:Q439)=0),\"Input required\",\"\"))","v":""},null,null,null,null,null,null,null,null,null,null,null,null,null,null,null,null,null,null,null,null,null,null,null,null,null,null,null,null,null,null,null,null,null,{"$f":"IF(D428=\"\",0,1)","v":0}]
[null,null,null," *  Claims for use of internet and mobile phone are attracting increasing scrutiny by the ATO."]
[null,null,null,"     In most cases, a 4-week diary is required to substantiate the work-related portion of use."]
[]
[null,null,null,"If you purchased tools or equipment costing MORE THAN $300 each, please provide details here:",null,null,null,null,null,null,null,null,null,null,null,null,null,null,null,null,null,{"$f":"IF(B432=\"\",\"\",B432)","v":""}]
[]
[null,null,null,"Description of tools or equipment",null,null,null,null,null,null,null,null,null,null,"Cost $"]
[]
[]
[]
[]
[]
[]
[]
[null,null,null,"Did you make any DONATIONS to any registered charities or School Building Funds?",null,null,null,null,null,null,null,null,null,null,null,null,null,null,null,null,null,{"$f":"IF(B442=\"\",\"\",B442)","v":""}]
[]
[null,null,null,"Please provide the following details:"]
[]
[null,null,null,"Name of Charity or Deductible Recipient",null,null,null,null,null,null,null,null,null,null,"$ Amount"]
[]
[]
[]
[]
[]
[]
[]
[]
[]
[]
[null,null,null,{"$f":"IF(finalise=\"\",\"\",IF(AND(donationsyn=\"Yes\",SUM(O447:Q456)=0),\"Input required\",\"\"))","v":""},null,null,null,null,null,null,null,null,null,null,null,null,null,null,null,null,null,null,null,null,null,null,null,null,null,null,null,null,null,null,null,null,null,{"$f":"IF(D457=\"\",0,1)","v":0}]
[]
[]
[null,null,null,"Did you pay another TAX AGENT (ie: not KMT Consulting) for your PRIOR YEAR tax return?",null,null,null,null,null,null,null,null,null,null,null,null,null,null,null,null,null,{"$f":"IF(B460=\"\",\"\",B460)","v":""}]
[]
[null,null,null,"Please provide the following details:"]
[]
[null,null,null,"Name of Tax Agent (if known)",null,null,null,null,null,null,null,null,null,null,"$ Amount"]
[]
[null,null,null,{"$f":"IF(finalise=\"\",\"\",IF(AND(otheragentyn=\"Yes\",O465=0),\"Input required\",\"\"))","v":""},null,null,null,null,null,null,null,null,null,null,null,null,null,null,null,null,null,null,null,null,null,null,null,null,null,null,null,null,null,null,null,null,null,{"$f":"IF(D466=\"\",0,1)","v":0}]
[]
[null,null,null,"Did you make any DEDUCTIBLE SUPER CONTRIBUTIONS (OTHER THAN through your employer)?",null,null,null,null,null,null,null,null,null,null,null,null,null,null,null,null,null,{"$f":"IF(B468=\"\",\"\",B468)","v":""}]
[]
[]
[null,null,null,"Has the Fund been notified of your intention to claim these contributions?",null,null,null,null,null,null,null,null,null,null,null,null,null,{"$f":"IF(AND(dedsuperyn=\"Yes\",noiyn=\"\"),\"Please select >\",\"\")","v":""},null,null,null,{"$f":"IF(B471=\"\",\"\",B471)","v":""},null,null,null,null,null,null,null,null,null,null,null,null,null,null,null,{"$f":"IF(R471=\"\",0,1)","v":0}]
[null,null,null,{"$f":"IF(AND(dedsuperyn=\"Yes\",noiyn=\"No\"),\"You will need to notify your Fund before claiming these contributions.\",\"\")","v":""}]
[]
[null,null,null,"Please provide the following details:"]
[]
[null,null,null,"Name of Superannuation Fund",null,null,null,null,null,null,null,"ABN of Fund",null,null,"Member or Account No.",null,null,null,null,"$ Amount"]
[]
[]
[null,null,null,{"$f":"IF(finalise=\"\",\"\",IF(AND(dedsuperyn=\"Yes\",SUM(T477:V478)=0),\"Input required\",\"\"))","v":""},null,null,null,null,null,null,null,null,null,null,null,null,null,null,null,null,null,null,null,null,null,null,null,null,null,null,null,null,null,null,null,null,null,{"$f":"IF(D479=\"\",0,1)","v":0}]
[]
[null,null,null,"Did you incur any OTHER DEDUCTIBLE EXPENSES which you have NOT YET INCLUDED?",null,null,null,null,null,null,null,null,null,null,null,null,null,null,null,null,null,{"$f":"IF(B481=\"\",\"\",B481)","v":""}]
[null,null,null,"(eg:  Income protection insurance; Expenses relating to dividend or investment income)?"]
[]
[null,null,null,"Please provide details below:"]
[]
[null,null,null,"Description of Expense",null,null,null,null,null,null,null,null,null,null,null,null,null,"$ Amount"]
[]
[]
[]
[null,null,null,{"$f":"IF(finalise=\"\",\"\",IF(AND(otherdedsyn=\"Yes\",SUM(R487:T489)=0),\"Input required\",\"\"))","v":""},null,null,null,null,null,null,null,null,null,null,null,null,null,null,null,null,null,null,null,null,null,null,null,null,null,null,null,null,null,null,null,null,null,{"$f":"IF(D490=\"\",0,1)","v":0}]
[]
[]
[]
[]
[]
[null,null,null,"OTHER ITEMS"]
[]
[]
[null,null,null,"Did you have PRIVATE HEALTH INSURANCE?",null,null,null,null,null,null,null,null,null,null,null,null,null,null,null,null,null,{"$f":"IF(B499=\"\",\"\",B499)","v":""}]
[]
[]
[null,null,null,"These details are usually available from the ATO. Do you want us to rely on the ATO information?",null,null,null,null,null,null,null,null,null,null,null,null,null,null,null,null,null,{"$f":"IF(B502=\"\",\"\",B502)","v":""}]
[]
[null,null,null,"Please provide the following details, or attach the annual tax statement from your insurer."]
[]
[null,null,null,"Member Number",null,null,null,"Fund ID",null,"Eligible premiums",null,null,"Govt Rebate received",null,null,"Rebate Code"]
[]
[]
[]
[]
[]
[]
[null,null,null,"The number of days you had an appropriate level of hospital cover:"]
[]
[]
[null,null,null,"How many DEPENDANT CHILDREN do you have?"]
[]
[null,null,null,"Do you have a SPOUSE (either married or de-facto)?",null,null,null,null,null,null,null,null,null,null,null,null,null,null,null,null,null,{"$f":"IF(B518=\"\",\"\",B518)","v":""}]
[]
[null,null,null,"Please provide the following information for your spouse:",null,null,null,null,null,null,null,null,null,null,null,null,null,null,null,null,null,{"$f":"IF(B520=\"\",\"\",B520)","v":""}]
[null,null,null,"(NOT REQUIRED if this information has been separately provided by your spouse)"]
[]
[null,null,null,"First Name:",null,null,null,null,null,null,null,null,null,null,"Family name:  ",null,null,null,null,null,null,null,null,null,"Date of Birth:  "]
[null,null,null,null,null,null,null,null,null,null,null,null,null,null,null,null,null,null,null,null,null,null,null,null,null,null,"dd/mm/yy"]
[null,null,null,"Spouse income details:"]
[null,null,null,"Taxable Income:"]
[null,null,null,"Reportable Fringe Benefits:"]
[null,null,null,"Reportable Super Contributions:"]
[null,null,null,"Govt pensions not included above:"]
[null,null,null,"Exempt pensions not included above:"]
[null,null,null,"Child support paid (if any):"]
[]
[]
[]
[]
[]
[null,null,null,"BANKING DETAILS"]
[]
[null,null,null,"It is now mandatory to provide BANK ACCOUNT DETAILS for ATO refunds. Please select ONE ONLY of the following options:"]
[]
[null,null,null,"1.","KMT Consulting already has my bank account details and they have not changed.",null,null,null,null,null,null,null,null,null,null,null,null,null,null,null,null,{"$f":"IF(bank1yn=\"Yes\",\"Yes\",\"\")","v":""}]
[]
[null,null,null,"2.","My details have changed, OR I would like to provide them again.",null,null,null,null,null,null,null,null,null,null,null,null,null,null,null,null,{"$f":"IF(bank2yn=\"Yes\",\"Yes\",\"\")","v":""}]
[]
[null,null,null,"3.","I am a new client, OR I am providing these details for the first time.",null,null,null,null,null,null,null,null,null,null,null,null,null,null,null,null,{"$f":"IF(bank3yn=\"Yes\",\"Yes\",\"\")","v":""}]
[]
[null,null,null,"If option 2 or 3 is chosen . . . ",null,null,null,null,null,null,null,null,null,null,null,null,null,{"$f":"IF(finalise=\"\",\"\",IF(AND(bank1yn=\"\",bank2yn=\"\",bank3yn=\"\"),\"Please select one of the above options\",\"\"))","v":""},null,null,null,null,null,null,null,null,null,null,null,null,null,null,null,null,null,null,null,{"$f":"IF(R547=\"\",0,1)","v":0}]
[null,null,null,"Please ensure that the following details are ACCURATELY provided."]
[]
[null,null,null,"Account Name",null,null,null,null,null,null,null,null,null,"BSB",null,null,"Account No."]
[]
[null,null,null,{"$f":"IF(finalise=\"\",\"\",IF(AND(OR(bank2yn=\"Yes\",bank3yn=\"Yes\"),OR(bankinput=\"\",N551=\"\",Q551=\"\")),\"Input required\",\"\"))","v":""},null,null,null,null,null,null,null,null,null,"(6 digits)",null,null,"(up to 9 digits)",null,null,null,null,null,null,null,null,null,null,null,null,null,null,null,null,null,null,null,null,{"$f":"IF(D552=\"\",0,1)","v":0}]
[]
[]
[]
[]
[]
[]
[null,null,null,"FINALISATION OF THE FORM AND LIST OF DOCUMENTS REQUIRED",null,null,null,null,null,null,null,null,null,null,null,null,null,null,null,null,null,null,null,null,null,null,null,null,null,null,null,null,null,null,null,null,null,{"$f":"SUM(AL3:AL558)","v":0}]
[]
[null,null,null,"Please ensure that you have completed ALL of the information which is relevant to your circumstances.",null,null,null,null,null,null,null,null,null,null,null,null,null,null,null,null,null,{"$f":"IF(B561=\"\",\"\",B561)","v":""}]
[null,null,null,"If you have any questions or need to provide additional information, please call or email us."]
[]
[null,null,null,"Or, you can add a message here:"]
[]
[]
[]
[]
[]
[]
[]
[null,null,null,{"$f":"IF(AL559>0,\"Some mandatory input is missing. It is indicated by RED FONT above. Please check and correct before proceeding.\",\"\")","v":""}]
[]
[null,null,null,"Save this file to your device."]
[null,null,null,"Then send it to us either by email or by using the \"Online Submission\" page on our website."]
[]
[null,null,null,"You will also need to include the attachments indicated below:"]
[]
[null,null,null,{"$f":"IF(P579=\"\",\"\",\"Proof of identity (eg: birth certificate, driver's licence or passport)\")","v":""},null,null,null,null,null,null,null,null,null,null,null,{"$f":"IF(existingyn=\"No\",\"Yes\",\"\")","v":""}]
[null,null,null,{"$f":"IF(P580=\"\",\"\",\"Payment summaries from your employer(s) - if any\")","v":""},null,null,null,null,null,null,null,null,null,null,null,{"$f":"IF(employeeyn=\"Yes\",\"Yes\",\"\")","v":""}]
[null,null,null,{"$f":"IF(P581=\"\",\"\",\"ETP statements from your employer(s) - if any\")","v":""},null,null,null,null,null,null,null,null,null,null,null,{"$f":"IF(etpyn=\"Yes\",\"Yes\",\"\")","v":""}]
[null,null,null,{"$f":"IF(P582=\"\",\"\",\"Details of Government pensions or allowances\")","v":""},null,null,null,null,null,null,null,null,null,null,null,{"$f":"IF(AND(atopensyn=\"No\",SUM(O99:T100)=0),\"Yes\",\"\")","v":""}]
[null,null,null,{"$f":"IF(P583=\"\",\"\",\"Payment summaries from your superannuation fund(s)\")","v":""},null,null,null,null,null,null,null,null,null,null,null,{"$f":"IF(supfundyn=\"Yes\",\"Yes\",\"\")","v":""}]
[null,null,null,{"$f":"IF(P584=\"\",\"\",\"Share dividend statements - if any\")","v":""},null,null,null,null,null,null,null,null,null,null,null,{"$f":"IF(AND(atodivsyn=\"No\",SUM(Q133:Z138)=0),\"Yes\",\"\")","v":""}]
[null,null,null,{"$f":"IF(P585=\"\",\"\",\"Employer share plan statements\")","v":""},null,null,null,null,null,null,null,null,null,null,null,{"$f":"IF(esasyn=\"Yes\",\"Yes\",\"\")","v":""}]
[null,null,null,{"$f":"IF(P586=\"\",\"\",\"Tax summary information from your managed fund(s)\")","v":""},null,null,null,null,null,null,null,null,null,null,null,{"$f":"IF(mgdinvyn=\"Yes\",\"Yes\",\"\")","v":""}]
[null,null,null,{"$f":"IF(P587=\"\",\"\",\"Details of business income and expenses\")","v":""},null,null,null,null,null,null,null,null,null,null,null,{"$f":"IF(businessyn=\"Yes\",\"Yes\",\"\")","v":""}]
[null,null,null,{"$f":"IF(P588=\"\",\"\",\"Purchase and sale documents for capital gains or losses\")","v":""},null,null,null,null,null,null,null,null,null,null,null,{"$f":"IF(cgtyn=\"Yes\",\"Yes\",\"\")","v":""}]
[null,null,null,{"$f":"IF(P589=\"\",\"\",\"Rental property statements\")","v":""},null,null,null,null,null,null,null,null,null,null,null,{"$f":"IF(attachrentyn=\"Yes\",\"Yes\",\"\")","v":""}]
[null,null,null,{"$f":"IF(P590=\"\",\"\",\"Annual statement from your health insurer(s)\")","v":""},null,null,null,null,null,null,null,null,null,null,null,{"$f":"IF(AND(phiatoyn=\"No\",SUM(J508:O511)=0),\"Yes\",\"\")","v":""}]
[]
[null,null,null,"END OF FORM"]